Cogmind - Beta 15 @@@ ROGUE MODE // 2025.06.20 @ 19:02:11 Player: 7604 Result: Self-destructed Performance ------------- Evolutions (8) 4000 Regions Visited (22) 4400 Robots Destroyed (399) 1995 Value Destroyed (18202) 18202 Prototype IDs (59) 1180 Alien Tech Used (5) 1000 Bonus (16295) 16295 TOTAL SCORE: 47072 Bonus ------- High Alert Combat Kills 3633 Follower Combat Kills 3202 Entered Garrisons 600 Used RIF Installer 1500 Network Hubs Disabled 400 Built Enhanced Grunts 300 A7 Reached Mainframe 300 Met R17 at Cetus 500 Used Core Reset Matrix 3000 Met R17 at Research 2000 Met Sigix 2000 Friendly Fire -1140 Cogmind --------- Core Integrity 982/1450 Matter 300/300 Energy 71/100 System Corruption 17% Temperature Cool (0) Movement Core (50) Location -2/Research Parts ------- > --- POWER (2) -------- (None) > --- PROPULSION (5) --- (None) > --- UTILITY (12) ----- Experimental Optical Array ECM Suite Graphene Brace (fused) > --- WEAPON (4) ------- (None) > --- INVENTORY (5) ---- Quantum Capacitor Subatomic Replicator Improved Plasma Cutter Phasing Sabre Peak State ------------ > --- POWER ------------ Compact Particle Reactor Light Quantum Reactor > --- PROPULSION ------- Hovering Antigrav-FC Exoskeleton > --- UTILITY ---------- Scrap Engine Improved Cooling System Huge Storage Unit Structural Scanner Experimental Optical Array IFF Parser Centrium Heavy Armor Plating Graphene Brace Advanced Thermal Shield Advanced Dynamic Insulation System > --- WEAPON ----------- KE Hardcell Construct/C Hvy. Thermal Rail Construct/C Phasing Sabre > --- INVENTORY -------- Experimental Cooling System High-capacity Storage Unit Advanced Energy Well Advanced Matter Compressor Advanced Weight Redist. System Advanced Signal Interpreter Improved Target Analyzer Quantum Capacitor ECM Suite Experimental Reaction Control System Improved Focal Shield Improved Shield Generator Remote Force Field Phase Redirector Long-range Tractor Beam Subatomic Replicator Enhanced Nova Cannon Enhanced Nova Cannon Advanced Datajack Improved Plasma Cutter Sigix Containment Pod [Rating: 174] Favorites ----------- Power Constructs Engine Cooled Ion Engine Power Core Light Nuclear Core Reactor Constructs Propulsion Constructs Treads Light Treads Leg Aluminum Leg Wheel Armored Wheel Hover Unit Constructs Flight Unit Q-thruster Utility Huge Storage Unit Device Armored Scrap Engine Storage Huge Storage Unit Processor Improved Signal Interpreter Hackware Improved System Shield Protection Centrium Medium Armor Plating Artifact Phase Armor Weapon Constructs Energy Gun Constructs Energy Cannon Cooled Plasma Cannon Ballistic Gun Improved Assault Rifle Ballistic Cannon Constructs Launcher Mini Grenade Launcher Special Weapon Improved Plasma Cutter Impact Weapon Hammer Slashing Weapon Phasing Sabre Piercing Weapon Spear Special Melee Weapon Advanced Datajack Build | -11 -10 -10 -9 -9 -9 -7 -7 -7 -7 -6 -5 -5 -5 -5 -5 -5 -5 -4 -4 -3 -3 -2 ------- Run | Yrd Mat Min Mat Sto Rec Fac Gar Fac Gar Fac Fac Was Fac Ext Cet Arc Hub Fac Gar Res Qua Res Slots Evolved 16 | . . . 2 . . 4 . . . 2 2 . . . . . . 2 . 2 . 2 Power 1 | . . . . . . 1 . . . . . . . . . . . . . . . . Propulsion 3 | . . . 1 . . 1 . . . . . . . . . . . 1 . . . . Utility 10 | . . . 1 . . 1 . . . 2 2 . . . . . . 1 . 1 . 2 Weapon 2 | . . . . . . 1 . . . . . . . . . . . . . 1 . . Parts Attached 218 | 1 14 . 11 14 8 8 5 4 3 24 10 2 . 9 3 5 3 3 2 21 45 23 Power 20 | . 2 . 1 2 . . . . . 5 1 . . . . . . . . . 5 4 Engine 9 | . 2 . 1 2 . . . . . 3 . . . . . . . . . . 1 . Core 2 | . . . . . . . . . . 1 1 . . . . . . . . . . . Reactor 9 | . . . . . . . . . . 1 . . . . . . . . . . 4 4 Propulsion 22 | . 4 . 3 4 3 . . . . . . . . . . . . . . . 5 3 Treads 14 | . 4 . 2 4 3 . . . . . . . . . . . . . . . 1 . Leg 2 | . . . . . . . . . . . . . . . . . . . . . 2 . Wheel 1 | . . . . . . . . . . . . . . . . . . . . . 1 . Hover 3 | . . . . . . . . . . . . . . . . . . . . . 1 2 Flight 2 | . . . 1 . . . . . . . . . . . . . . . . . . 1 Utility 120 | 1 3 . 5 3 2 5 4 . 2 12 8 2 . 8 2 4 3 3 2 17 25 9 Device 66 | 1 . . 2 1 1 1 3 . 1 8 4 1 . 5 . 2 1 1 1 9 17 7 Storage 8 | . 1 . 1 . . 1 . . . 1 . . . . . . . . . 1 2 1 Processor 14 | . . . . . . 1 1 . . 2 2 . . . . . . 1 1 3 2 1 Hackware 3 | . . . . . . . . . . . . . . 1 . 2 . . . . . . Protection 28 | . 2 . 2 2 1 2 . . 1 1 2 1 . 2 2 . 2 1 . 4 3 . Artifact 1 | . . . . . . . . . . . . . . . . . . . . . 1 . Weapon 56 | . 5 . 2 5 3 3 1 4 1 7 1 . . 1 1 1 . . . 4 10 7 Energy Gun 14 | . 3 . . 1 . . . 1 . 1 . . . . . . . . . 2 4 2 Energy Cannon 11 | . . . 2 . . . . 1 . 3 1 . . . . . . . . . 2 2 Ballistic Gun 8 | . . . . 1 2 1 . 1 . . . . . . . . . . . 1 . 2 Ballistic Cannon 6 | . . . . 3 . 1 . . 1 . . . . . . . . . . . . 1 Launcher 4 | . 1 . . . . . 1 1 . . . . . . . . . . . . 1 . Special Weapon 1 | . . . . . . . . . . . . . . 1 . . . . . . . . Impact Weapon 3 | . 1 . . . 1 . . . . 1 . . . . . . . . . . . . Slashing Weapon 3 | . . . . . . 1 . . . . . . . . 1 . . . . . 1 . Piercing Weapon 2 | . . . . . . . . . . 1 . . . . . . . . . . 1 . Special Melee Weapon 4 | . . . . . . . . . . 1 . . . . . 1 . . . 1 1 . Unidentified Prototypes 27 | . . . 1 2 1 . . 2 . 4 . . . . 1 . . 1 . 7 5 3 Corrupted Parts 2 | . . . . . . . . . . . . . . . . . . . . . 2 . System Corruption 11 | . . . . . . . . . . . . . . . . . . . . . 11 . Parts Lost 97 | . 1 . 2 1 . . 2 . 4 17 5 . . 1 . . 1 . 8 7 28 20 Power 15 | . . . 1 . . . . . . 5 . . . . . . . . . . 6 3 Propulsion 12 | . . . . 1 . . 1 . . 3 . . . . . . . . . 1 1 5 Utility 43 | . . . . . . . . . 2 4 4 . . 1 . . 1 . 5 6 12 8 Weapon 27 | . 1 . 1 . . . 1 . 2 5 1 . . . . . . . 3 . 9 4 Highest Loss Streak 12 | . 1 . 1 1 . . 2 . 2 5 3 . . 1 . . 1 . 2 4 8 12 To Critical Strikes 1 | . . . . . . . . . . . . . . . . . . . . . 1 . Average Backups 21 | 6 10 15 16 24 21 20 19 22 22 19 22 24 22 24 24 25 24 23 21 21 21 21 Power . | 1 1 1 . 2 1 . . . . . . . . . . . . . . . . . Propulsion 1 | 4 1 2 3 5 2 1 . . 3 2 2 1 . . . . . . . . . 1 Utility 13 | . 4 9 7 9 8 16 15 17 16 13 14 16 17 18 19 20 19 18 16 16 15 14 Weapon 4 | 1 2 3 4 7 9 2 3 3 2 4 4 3 3 3 3 3 3 3 2 2 2 2 Tool/Special . | . . . . . . . . . . . . . . . . . . . . . . . Unused Backups 95 | . 12 . 4 9 24 5 16 1 1 1 2 5 . 1 1 . 1 . . . 5 7 Power 9 | . 3 . . 1 4 1 . . . . . . . . . . . . . . . . Propulsion 27 | . 4 . . 3 12 3 . . . 1 . 2 . . . . . . . . 1 1 Utility 40 | . 1 . 3 2 3 1 13 1 1 . 2 3 . 1 1 . 1 . . . 4 3 Weapon 18 | . 4 . 1 3 5 . 3 . . . . . . . . . . . . . . 2 Tool/Special 1 | . . . . . . . . . . . . . . . . . . . . . . 1 Average Slot Usage (%) 71 | . 100 100 99 99 78 60 60 60 56 59 61 70 70 69 70 69 70 67 60 66 60 56 Engine 4 | . 14 14 10 11 10 5 6 2 1 2 . 1 . 3 1 . . . . . . . Reactor 1 | . . . . . . . . 1 2 1 . 3 4 1 3 5 5 . . 4 5 2 Treads 9 | . 23 28 32 33 16 5 5 5 2 5 2 4 4 . 3 5 . 4 5 1 . 1 Leg 1 | . 4 . . . . 1 . 1 4 . 2 . . 4 1 . . . . 1 2 . Device 15 | . 13 14 10 11 10 13 13 15 12 15 24 21 17 16 17 16 15 22 15 20 18 24 Storage 7 | . 14 14 11 11 11 7 7 7 7 6 5 5 5 5 5 5 5 5 5 4 4 4 Processor 4 | . . . . . . 1 1 . . 7 6 11 11 11 11 11 11 10 8 6 10 4 Protection 3 | . . . 10 10 2 . . . 1 1 1 . 5 5 5 5 6 2 9 7 3 3 Energy Gun 4 | . 23 28 18 . . 6 2 7 2 3 2 6 8 4 5 5 3 . . 2 1 1 Energy Cannon 2 | . . . 3 7 . . . 6 3 5 4 5 5 . . . . . . 3 3 4 Ballistic Gun 4 | . 2 . . . 17 7 9 . 3 1 . . . 4 5 5 2 5 4 4 . . Ballistic Cannon 3 | . . . . 14 3 1 9 6 4 . 3 4 2 4 2 . 3 5 . . . 1 Slashing Weapon 1 | . . . . . . 4 . . 1 1 . . . . 1 5 5 5 4 1 2 1 Peak Build Rating 174 | 7 13 13 19 22 41 56 76 82 78 68 88 101 98 105 119 121 122 115 119 157 166 174 Average Rating 71 | 6 10 13 17 19 34 48 64 71 66 58 67 89 97 94 109 119 114 99 108 132 131 147 On Entrance 69 | 6 7 13 13 19 19 39 56 65 78 56 47 77 98 96 93 119 112 110 96 112 149 127 Naked Turns . | . . . . . . . . . . . . . . . . . . . . . . . Heaviest Build 170 | 11 30 30 99 105 108 109 110 107 125 116 123 142 142 143 146 144 152 147 139 170 161 166 Greatest Support 159 | 20 46 46 69 69 60 57 140 140 108 108 33 129 131 131 157 157 157 110 110 134 159 105 Greatest Overweight (x) 47 | . . . 1 1 9 2 2 1 1 4 3 3 1 1 1 47 1 1 1 2 2 3 Average Overweight (x) 1 | . . . . 1 3 1 . . . 1 2 1 1 . . 9 . 1 1 1 1 1 Largest Inventory Capacity 25 | 8 15 15 25 25 25 25 25 25 25 25 25 25 25 25 25 25 25 25 25 25 25 25 Average Capacity 24 | 8 10 15 21 25 25 25 25 25 25 25 25 25 25 25 25 25 25 25 25 25 25 24 Most Carried 25 | 8 15 15 21 25 25 25 25 25 24 25 25 25 22 25 25 25 25 25 24 25 25 25 Average Carried 21 | 6 10 15 16 24 21 21 21 22 22 19 22 24 22 24 24 25 24 23 21 21 22 23 Final Capacity 25 | 8 15 15 25 25 25 25 25 25 25 25 25 25 25 25 25 25 25 25 25 25 25 5 Final Carried 25 | 8 15 15 21 25 14 21 19 24 23 20 25 22 22 25 25 25 24 24 20 25 22 5 Scrap Engine Consumption 515 | . . . . . 57 27 43 18 26 76 33 22 17 29 17 2 21 5 14 30 52 26 Constructs Created 26 | . . . . . 4 . 1 . 1 4 3 . . 1 . . . . 1 2 6 3 Constructs Modified 196 | . . . . . 18 8 20 10 13 24 9 13 4 16 7 1 9 4 4 12 14 10 Class Distribution -------------------- 44% | Construct 24% | Mutant 9% | Commander-Construct 6% | Commander-Mutant 3% | Scavenger-Mutant 3% | Skirmisher Dominant Class ---------------- Mutant | -10/Materials Mutant | -10/Mines Mutant | -9/Materials Commander-Mutant | -9/Storage Construct | -9/Recycling Construct | -7/Factory Construct | -7/Garrison Construct | -7/Factory Construct | -7/Garrison Construct | -6/Factory Skirmisher | -5/Factory Construct | -5/Waste Construct | -5/Factory Construct | -5/Extension Commander-Construct | -5/Cetus Commander-Construct | -5/Archives Construct | -5/Hub_04(d) Infiltrator-Construct | -4/Factory Construct | -4/Garrison Construct | -3/Research Mutant | -3/Quarantine Skirmisher | -2/Research Resources | -11 -10 -10 -9 -9 -9 -7 -7 -7 -7 -6 -5 -5 -5 -5 -5 -5 -5 -4 -4 -3 -3 -2 ----------- Run | Yrd Mat Min Mat Sto Rec Fac Gar Fac Gar Fac Fac Was Fac Ext Cet Arc Hub Fac Gar Res Qua Res Matter Collected 11033 | 212 198 . 313 643 403 375 811 231 445 1526 309 177 9 683 139 122 318 . 369 1310 1473 967 Remotely . | . . . . . . . . . . . . . . . . . . . . . . . Salvage Created 18498 | 102 483 . 854 888 1250 808 1987 554 1028 3122 660 69 88 941 275 237 1830 . 737 787 735 1063 Parts 867 | 9 15 . 46 51 52 34 84 40 64 112 52 1 1 32 12 18 84 . 39 24 44 53 Haulers Intercepted 18 | . 1 . 2 5 . 2 . 1 . 2 . . 1 2 . . . . . 1 1 . Recyclers Shooed 21 | . 1 . . 2 2 1 . 1 . 10 2 . . 2 . . . . . . . . Parts Field Recycled . | . . . . . . . . . . . . . . . . . . . . . . . Retrieved Matter . | . . . . . . . . . . . . . . . . . . . . . . . Parts Self-Destructed . | . . . . . . . . . . . . . . . . . . . . . . . Prevented . | . . . . . . . . . . . . . . . . . . . . . . . Kills | -11 -10 -10 -9 -9 -9 -7 -7 -7 -7 -6 -5 -5 -5 -5 -5 -5 -5 -4 -4 -3 -3 -2 ------- Run | Yrd Mat Min Mat Sto Rec Fac Gar Fac Gar Fac Fac Was Fac Ext Cet Arc Hub Fac Gar Res Qua Res Combat Hostiles Destroyed 293 | . 10 . 22 20 4 9 29 11 33 47 17 . . 7 3 1 17 . 16 11 19 17 Melee 7 | . . . . . . . . . 5 . . . . . . . . . 1 . 1 . Guns 101 | . 7 . 15 . 2 8 15 2 3 15 2 . . 4 3 1 8 . 4 7 3 2 Cannons 97 | . . . 2 17 2 1 10 6 7 19 6 . . 3 . . 9 . 1 2 3 9 AOE 71 | . 1 . 3 3 . . 4 3 18 5 8 . . . . . . . 8 2 11 5 Classes Destroyed 25 | 2 3 . 4 . 3 2 2 . 2 1 . . . 1 . . 2 . . 2 1 . Worker 19 | . . . 1 1 . . . . . 6 1 . . . . . 8 . . 2 . . Builder 13 | . . . . . 6 . . . . 2 1 . . . . . 1 . . . . 3 Tunneler 6 | 1 . . . . . . . . . 2 2 . . . . . 1 . . . . . Hauler 18 | . 1 . 2 5 . 2 . 1 . 2 . . 1 2 . . . . . 1 1 . Recycler 23 | 1 . . . . 11 2 . 1 . 6 . . . 1 . . 1 . . . . . Operator 10 | . . . 1 . . . . 2 . . . . . 1 . 5 . . . . 1 . Watcher 10 | . 2 . . 1 . 1 . . . . . . . . 2 . 4 . . . . . Swarmer 58 | . . . 8 4 . . 4 3 12 8 9 . . . . . . . 6 3 1 . Cutter 6 | . . . . . . . . . 6 . . . . . . . . . . . . . Grunt 105 | . 10 . 8 11 . 6 12 3 5 22 . . . 2 . . 8 . 7 1 3 7 Brawler 9 | . . . . . . 1 3 . 1 2 . . . . . . . . 1 1 . . Duelist 6 | . . . . . . . 3 . 1 1 . . . . . . . . 1 . . . Protector 2 | . . . . . . . . . . 1 . . . . . . . . . . 1 . Sentry 36 | . . . 6 5 2 . 3 . 3 5 2 . . 4 . 1 4 . . . . 1 Demolisher 1 | . . . . . . . . . . . . . . . . . 1 . . . . . Specialist 2 | . . . . . . . . . 1 . . . . . . . . . . . . 1 Hunter 11 | . . . . . . . 4 1 1 2 . . . 1 . . 1 . . 1 . . Programmer 34 | . . . . . . 2 . 4 3 6 6 . . . . . 2 . . 1 2 8 Behemoth 2 | . . . . . . . . . . . . . . . . . 1 . 1 . . . Cetus Guard 3 | . . . . . . . . . . . . . . . 3 . . . . . . . Quarantine Guard 8 | . . . . . . . . . . . . . . . . . . . . . 8 . Enhanced Grunt 1 | . . . . . . . . . . . . . . . . . 1 . . . . . Lightning 3 | . . . . . . . . . . . . . . . . . . . . . 3 . Striker 3 | . . . . . . . . . . . . . . . . . . . . 3 . . Executioner 1 | . . . . . . . . . . . . . . . . . . . . 1 . . Alpha 7 1 | . . . . . . . . . . . . . . . . . . . . . 1 . Scientist 2 | . . . . . 2 . . . . . . . . . . . . . . . . . Scrapper 2 | . . . . . 2 . . . . . . . . . . . . . . . . . Surgeon 2 | . . . . . . . . . . . . . . . . . 2 . . . . . Butcher 1 | . . . . . . . . . . . . 1 . . . . . . . . . . Martyr 1 | . . . . . . . . . . . . . . 1 . . . . . . . . Guerrilla 2 | . . . . . . . . . . . . . . 1 . . 1 . . . . . Best Kill Streak 8 | 2 2 . 6 4 3 5 5 3 5 6 5 . 1 2 3 4 8 . 4 5 6 5 Combat Bots Only 6 | . 2 . 4 4 1 3 5 3 5 5 5 . . 2 1 1 2 . 4 5 6 5 Max Kills in Single Turn 8 | 1 1 . 4 2 1 1 2 2 3 3 4 1 1 1 1 1 8 . 2 2 6 1 Gunslinging . | . . . . . . . . . . . . . . . . . . . . . . . Exploded 6 | . 1 . 3 2 . . 2 2 3 2 4 . . . . . . . 2 2 6 1 Melee 1 | . . . . . . . . . 1 . . . . . . . . . 1 . 1 . Uniques/NPCs Destroyed . | . . . . . . . . . . . . . . . . . . . . . . . Combat | -11 -10 -10 -9 -9 -9 -7 -7 -7 -7 -6 -5 -5 -5 -5 -5 -5 -5 -4 -4 -3 -3 -2 -------- Run | Yrd Mat Min Mat Sto Rec Fac Gar Fac Gar Fac Fac Was Fac Ext Cet Arc Hub Fac Gar Res Qua Res Hostile Shots Fired 2702 | . 48 . 88 89 13 57 177 60 220 527 95 . . 73 35 14 173 . 182 212 362 277 Missed 760 | . 10 . 26 30 2 14 44 17 81 146 25 . . 20 10 . 49 . 56 57 98 75 Hits 1942 | . 38 . 62 59 11 43 133 43 139 381 70 . . 53 25 14 124 . 126 155 264 202 Melee 48 | . . . . . . . 12 . 17 7 . . . . . . . . 4 8 . . Projectile 1894 | . 38 . 62 59 11 43 121 43 122 374 70 . . 53 25 14 124 . 122 147 264 202 AOE 8 | . . . . . . . . . 1 1 . . . . . . 6 . . . . . Critical Strikes 99 | . 2 . 1 2 . 4 5 4 5 11 3 . . 1 6 . 5 . 4 11 23 12 Actively Blocked 22 | . . . . . . . . . . . . . . . . . . . . . 10 12 Part Disruptions 1 | . . . . . . . . . . . . . . . . . . . . . . 1 Damage Taken 37732 | . 562 . 771 824 280 683 1336 559 1982 5756 1517 24 15 1053 693 413 2568 . 2583 3043 8112 4958 Core 3646 | . 135 . 73 16 14 50 156 73 219 652 135 . . 101 36 57 215 . 95 153 998 468 Absorbed by Shields 2453 | . . . . 6 . . 372 78 341 . . . . 260 55 . 394 . 64 719 111 53 Reduced by Siege Mode 326 | . . . . . . . 33 7 . . . . . . 71 7 . . 47 161 . . Redirected to Core 147 | . . . . . . . . . . . . . . . . . . . . . 147 . Ignored by Resistances 570 | . . . . . . . . . . . . . . . . . . . . . . 570 Regen/Repaired (Parts) 11331 | . 54 . 145 95 130 249 823 241 1133 1941 454 615 28 651 174 137 1393 417 774 386 993 498 Core Remaining (%) 52 | 100 . 46 . . 74 . . . 28 23 . . . . . . 45 . 91 . 11 . Volleys Fired 1337 | 2 38 . 53 65 47 43 125 31 80 241 80 1 7 64 13 8 82 2 60 42 125 128 Largest 3 | 2 2 . 2 2 2 3 3 3 3 3 2 3 3 3 3 2 2 1 2 3 3 2 Hottest 275 | 60 112 . 136 136 66 94 114 162 162 152 162 173 173 199 192 111 100 30 105 254 275 158 Shots Fired 2131 | 4 73 . 103 122 89 97 233 78 110 267 99 5 17 162 28 16 162 2 71 83 172 138 Gun 1065 | 4 71 . 92 . 81 85 146 29 37 101 21 1 10 88 25 16 100 . 42 51 52 13 Cannon 963 | . . . 8 120 8 12 84 47 61 163 74 4 7 74 3 . 62 2 20 31 75 108 Launcher 103 | . 2 . 3 2 . . 3 2 12 3 4 . . . . . . . 9 1 45 17 Special . | . . . . . . . . . . . . . . . . . . . . . . . Kinetic 934 | 2 1 . . 60 88 61 218 . 26 85 11 1 6 105 28 8 82 2 21 40 31 58 Thermal 992 | 2 70 . 100 60 1 36 12 66 61 179 83 4 11 57 . 8 80 . 33 31 35 63 Explosive 102 | . 2 . 3 2 . . 3 2 12 3 4 . . . . . . . 9 1 44 17 Electromagnetic 103 | . . . . . . . . 10 11 . 1 . . . . . . . 8 11 62 . Robot Hit Streak 26 | 3 12 . 18 14 17 14 18 16 8 25 10 1 4 26 6 6 11 . 6 11 10 10 Robot Miss Streak 6 | . 3 . 3 6 1 3 5 4 3 5 4 3 2 5 6 2 2 . 2 2 5 4 Penetration Max 1 | . . . . . . 1 1 . . 1 . . . 1 1 1 1 . . . . . Secondary Targets 3 | . 1 . . . . 1 . . . . . . . . . 1 . . . . . . Max Gunslinging Chain 1 | . 1 . . . . 1 . . . . . . . . . 1 . . . . . . Capacitor 60 | . . . . . . . . . . . . . . . . . . . . . 8 52 Shots Hit Robots 1446 | 3 52 . 76 76 67 62 147 50 62 225 43 1 11 106 20 18 119 . 51 60 122 75 Core Hits 814 | 3 18 . 31 31 29 26 73 25 53 178 42 . 2 37 11 9 65 . 28 28 82 43 Critical Kills 13 | . . . . . 2 1 . 1 . . 1 1 . . 1 . 3 . 2 . . 1 Critical Parts Destroyed 16 | . 1 . . . . . . . . . . . . . 2 . 6 . 1 4 2 . Critical Strikes 72 | . 8 . 4 1 3 2 9 1 2 14 2 1 . . 3 . 9 . 6 4 2 1 Burn 20 | . 7 . 4 . . 1 . . . 7 1 . . . . . . . . . . . Meltdown 3 | . . . . . . . . . . . 1 1 . . . . . . . . . 1 Destroy 25 | . . . . . 2 1 . 1 . . . . . . 3 . 9 . 3 4 2 . Blast 18 | . . . . 1 1 . 9 . . 7 . . . . . . . . . . . . Smash 1 | . 1 . . . . . . . . . . . . . . . . . . . . . Sever 5 | . . . . . . . . . 2 . . . . . . . . . 3 . . . Melee Attacks 140 | . 4 . . . 3 11 . . 17 27 . . . 10 2 7 1 . 20 7 23 8 Impact 10 | . 4 . . . 3 3 . . . . . . . . . . . . . . . . Slashing 88 | . . . . . . 8 . . 17 3 . . . . . 7 1 . 20 4 20 8 Piercing 23 | . . . . . . . . . . 23 . . . . . . . . . . . . Sneak Attacks 32 | . . . . . . 1 . . . 9 . . . 10 2 6 . . . 2 2 . Combat Hostiles . | . . . . . . . . . . . . . . . . . . . . . . . Follow-up Attacks . | . . . . . . . . . . . . . . . . . . . . . . . Damage Inflicted 53986 | 28 854 . 1344 1799 1035 1288 4602 1639 2913 6654 2110 152 353 3338 705 1022 5903 . 2412 2099 10145 3591 Guns 18415 | 28 719 . 1031 . 930 1068 3113 551 323 2118 256 21 145 2019 681 395 2294 . 523 1095 814 291 Cannons 17772 | . . . 122 1643 105 152 1178 878 637 3665 1232 131 162 1304 24 . 1874 . 642 644 1151 2228 Explosions 15047 | . 99 . 191 153 . . 311 193 1327 378 622 . . . . . 1698 . 691 228 8084 1072 Melee 2637 | . 36 . . . . 68 . . 626 492 . . . . . 627 37 . 556 125 70 . Ramming 115 | . . . . 3 . . . 17 . 1 . . 46 15 . . . . . 7 26 . Kinetic 18020 | 8 10 . . 856 1020 728 4041 . 253 1993 289 33 123 2327 705 307 2501 . 325 873 398 1230 Thermal 23060 | 20 709 . 1153 787 15 492 250 1376 637 3790 1199 119 184 996 . 88 1903 . 617 663 6773 1289 Explosive 7114 | . 99 . 191 153 . . 311 193 1327 378 622 . . . . . . . 691 228 1955 966 Electromagnetic 3040 | . . . . . . . . 53 70 . . . . . . . 1462 . 223 203 923 106 Impact 36 | . 36 . . . . . . . . . . . . . . . . . . . . . Slashing 2165 | . . . . . . 68 . . 626 56 . . . . . 627 37 . 556 125 70 . Piercing 436 | . . . . . . . . . . 436 . . . . . . . . . . . . Highest Corruption 31 | . . . . . . 1 1 3 8 6 9 9 9 9 9 9 5 . 1 3 31 17 Average Corruption 7 | . . . . . . 1 1 1 6 3 6 9 9 9 9 6 3 . 1 2 15 9 Corruption Purged 9 | . . . . . . . . . . . . . . . . 9 . . . . . . Corruption Blocked . | . . . . . . . . . . . . . . . . . . . . . . . Effects 465 | . . . . . . 4 13 28 49 7 32 30 10 62 19 7 4 . 7 6 140 47 Message Errors 127 | . . . . . . . 3 4 9 2 7 11 3 21 4 3 2 . 2 2 43 11 Matter Fused 112 | . . . . . . 2 2 5 12 1 10 6 2 17 6 . 2 . 2 . 31 14 Heat Flow Errors 54 | . . . . . . . 1 5 4 2 2 2 1 7 3 . . . 1 1 18 7 Energy Discharges 46 | . . . . . . 1 1 3 8 1 5 3 1 7 . 3 . . . . 11 2 Parts Rejected 3 | . . . . . . . . . 1 . . . . 1 . . . . . 1 . . Parts Fused 7 | . . . . . . . . . 1 . 1 1 . 2 . . . . . . 1 1 Data Loss (minor) 51 | . . . . . . 1 5 3 4 . 2 2 2 3 4 1 . . 1 . 18 5 Data Loss (major) 23 | . . . . . . . 1 2 4 1 1 3 . 1 1 . . . . 1 5 3 Misfires 11 | . . . . . . . . 2 1 . 2 2 . . . . . . . . 3 1 Alerts 11 | . . . . . . . . 4 1 . 1 . 1 . . . . . . . 4 . Misdirections 4 | . . . . . . . . . . . . . . . . . . . . . 3 1 Weapon Failures 16 | . . . . . . . . . 4 . 1 . . 3 1 . . . 1 1 3 2 Overload Shots 9 | . . . . . . . . . . . 5 . . . . . . . 4 . . . Overflow Damage 1331 | . 36 . 20 17 . 19 23 20 41 245 152 . . 8 . 175 213 . 21 49 245 47 Projectiles 443 | . . . . 11 . 19 23 20 5 85 127 . . 8 . . 93 . 12 5 . 35 Explosions 502 | . . . 20 6 . . . . 36 37 25 . . . . . 120 . 1 . 245 12 Melee 386 | . 36 . . . . . . . . 123 . . . . . 175 . . 8 44 . . Knockbacks 57 | . . . . 5 . 1 10 . . 2 8 1 . 5 . . 10 . . . 2 13 Impact . | . . . . . . . . . . . . . . . . . . . . . . . Kinetic 56 | . . . . 5 . 1 10 . . 2 8 1 . 5 . . 9 . . . 2 13 Secondary 1 | . . . . . . . . . . . . . . . . . 1 . . . . . Self-Inflicted Damage 1676 | . 30 . 18 58 . . 29 . 392 15 150 . . . . . 103 . 80 . 701 100 Shots 51 | . 1 . 1 2 . . 1 . 10 1 2 . . . . . 1 . 2 . 26 4 Rammed 12 | . . . . 2 . . . 3 . 1 . . 2 . . . . . . 1 3 . Targets Rammed 14 | . . . . 2 . . . 3 . 1 . . 2 2 . . . . . 1 3 . Kicked 2 | . . . . . . . . . . . . . . 2 . . . . . . . . Crushed . | . . . . . . . . . . . . . . . . . . . . . . . Highest Temperature 545 | 20 436 . 240 302 24 58 234 208 270 245 251 191 222 545 291 27 390 . 325 399 379 319 Average Temperature 93 | 15 155 . 78 88 9 18 85 52 70 39 54 73 106 134 93 14 106 . 80 131 95 92 Received Heat Transfer 6143 | . 324 . 219 332 123 396 255 127 264 1684 27 . 9 211 94 54 425 . 465 148 689 297 Effects 24 | . 3 . . 1 . . . 2 1 . . . . 6 . . 1 . . 2 6 2 Shutdowns 3 | . 2 . . . . . . . . . . . . 1 . . . . . . . . Energy Bleed 4 | . 1 . . . . . . . . . . . . 2 . . . . . . 1 . Interference 14 | . . . . 1 . . . 2 1 . . . . . . . 1 . . 2 5 2 Matter Decay 1 | . . . . . . . . . . . . . . 1 . . . . . . . . Short Circuit 1 | . . . . . . . . . . . . . . 1 . . . . . . . . Damage (minor) 1 | . . . . . . . . . . . . . . 1 . . . . . . . . Siege Activations 10 | . . . . . . . 1 4 . . . . . . 1 1 . . 1 2 . . Total Turns 125 | . . . . . . . 35 20 . . . . . . 24 6 . . 21 19 . . Longest Duration 35 | . . . . . . . 35 8 . . . . . . 24 6 . . 21 18 . . Martial Activations . | . . . . . . . . . . . . . . . . . . . . . . . Shielding Activations . | . . . . . . . . . . . . . . . . . . . . . . . Robots Disrupted 3 | . . . . . . . . . . . . . . . . . . . . . 3 . Combat Hostiles 2 | . . . . . . . . . . . . . . . . . . . . . 2 . Robots Corrupted 5 | . . . . . . . . . . . . . . . . . 2 . 2 . 1 . Combat Hostiles 3 | . . . . . . . . . . . . . . . . . . . 2 . 1 . Parts Fried 15 | . 1 . . . . . . . . . . . . 2 1 . 3 . 1 2 5 . Impact Corruptions 2 | . 1 . . . . . . . . . . . . . . . 1 . . . . . Robots Melted 15 | . 2 . 2 . . . . . . 8 1 1 . . . . . . . . . 1 Combat Hostiles 14 | . 2 . 2 . . . . . . 8 1 . . . . . . . . . . 1 Parts Melted 78 | . 6 . 10 5 1 3 . 5 1 32 1 2 1 3 . . . . . 6 . 2 Heat Transferred 27632 | 50 2331 . 3108 1406 50 1450 225 1607 932 7677 1664 150 311 1360 . 148 1569 . 570 851 1211 962 Parts Sabotaged 3 | . . . . . . . . . . 3 . . . . . . . . . . . . Parts Stolen . | . . . . . . . . . . . . . . . . . . . . . . . Parts Stripped . | . . . . . . . . . . . . . . . . . . . . . . . Power Chain Reactions 3 | . . . . . . . . . . . . . . . . . 3 . . . . . Alert | -11 -10 -10 -9 -9 -9 -7 -7 -7 -7 -6 -5 -5 -5 -5 -5 -5 -5 -4 -4 -3 -3 -2 ------- Run | Yrd Mat Min Mat Sto Rec Fac Gar Fac Gar Fac Fac Was Fac Ext Cet Arc Hub Fac Gar Res Qua Res Maximum Alert Level 5 | . . . 1 1 . 1 3 2 3 3 2 . . 3 2 1 5 3 3 2 3 2 Low Security (%) 45 | 100 100 100 86 90 100 91 5 29 8 . 14 100 100 15 . 64 7 . . . 24 . Level 1 14 | . . . 13 9 . 8 14 56 17 . 57 . . 26 17 35 7 . . 9 3 48 Level 2 21 | . . . . . . . 41 14 26 58 28 . . 48 82 . 34 . 56 90 . 51 Level 3 16 | . . . . . . . 37 . 47 41 . . . 9 . . . 100 43 . 71 . Level 4 . | . . . . . . . . . . . . . . . . . 36 . . . . . Level 5 . | . . . . . . . . . . . . . . . . . 14 . . . . . High Security . | . . . . . . . . . . . . . . . . . . . . . . . Max Security . | . . . . . . . . . . . . . . . . . . . . . . . Peak Influence 1735 | 10 146 27 216 263 105 252 1033 541 1085 1058 516 178 108 731 531 399 1735 844 983 600 836 571 Initial 844 | . . 27 . 74 27 252 79 541 95 569 514 178 . 10 394 185 . 844 539 552 249 456 Average 338 | 5 53 3 128 85 5 96 637 280 673 657 322 30 49 398 455 145 980 811 703 477 592 418 Influence Increases 15583 | 10 427 . 681 819 327 592 974 363 1030 1414 666 12 298 1705 364 284 2281 17 584 397 1583 755 Destroy 0b10 Robot/C 7080 | . 200 . 440 460 80 180 580 220 660 940 340 . 80 720 160 80 640 . 340 220 400 340 Destroy 0b10 Robot/NC 600 | 10 15 . 20 35 85 25 30 20 5 95 20 . 15 65 10 25 80 . . 15 15 15 Destroy Leader 1346 | . 56 . 134 112 . 46 30 62 40 204 70 . 36 114 . . 178 . 20 42 132 70 Allied During Kill 1559 | . . . . 41 20 . . . . 8 . . 131 631 153 105 449 . 2 . 19 . Successful Hack 462 | . 32 . 20 11 18 61 . 46 . 16 10 . . 11 . . 14 . . 14 155 54 Select Force Hacks 210 | . 60 . 30 . 120 . . . . . . . . . . . . . . . . . Disable Machine 960 | . . . . 60 . . 30 . 30 15 60 . . 45 15 60 255 15 . 60 270 45 Anti-Garrison Action 450 | . . . . . . . 200 . 150 . . . . . . . . . 100 . . . Destroy Structure 2171 | . 19 . 37 25 4 15 59 15 145 61 166 12 36 104 26 14 530 2 107 16 592 186 Advance Influence 250 | . . . . . . 250 . . . . . . . . . . . . . . . . Partial Spotted 45 | . . . . 15 . . . . . . . . . 15 . . . . . . . 15 Lose Combat Pursuer 450 | . 45 . . 60 . 15 45 . . 75 . . . . . . 135 . 15 30 . 30 Influence Decreases 15134 | 10 357 70 505 923 394 483 55 1260 81 1449 1206 522 276 1022 605 748 558 969 372 935 1215 1119 Entered New Map 4842 | . . 43 . 102 45 3 35 492 41 516 536 332 . 12 311 279 . 879 232 431 196 357 Time Decay 8209 | 10 347 27 485 691 344 480 . 618 . 733 620 170 196 572 254 469 388 90 . 434 719 562 Lost Part 944 | . 10 . 20 10 . . 20 . 40 170 50 . . 4 . . 10 . 80 70 260 200 Lost Ally 789 | . . . . 70 5 . . . . 30 . 20 80 284 40 . 160 . 60 . 40 . Purge Threat 350 | . . . . 50 . . . 150 . . . . . 150 . . . . . . . . Squads Dispatched 78 | . 5 . 4 2 . 3 . 5 . 13 6 . 3 6 . . 13 . . 4 2 12 Investigation 15 | . 3 . 2 . . 1 . . . 1 2 . . 1 . . 3 . . . 1 1 Extermination 21 | . . . . . . 2 . 4 . 5 3 . 1 . . . 1 . . . 1 4 Reinforcement 31 | . 2 . 2 2 . . . 1 . 2 1 . 2 5 . . 3 . . 4 . 7 Assault 5 | . . . . . . . . . . 4 . . . . . . 1 . . . . . Garrison 6 | . . . . . . . . . . 1 . . . . . . 5 . . . . . Intercept . | . . . . . . . . . . . . . . . . . . . . . . . Searches Triggered . | . . . . . . . . . . . . . . . . . . . . . . . Construction Impeded 9 | . . . . . . . . . . 1 1 . 1 3 . . 1 . . . . 2 Haulers Reinforced 2 | . . . . . . . . 1 . . . . . . . . . . . 1 . . Active Scanning Responses . | . . . . . . . . . . . . . . . . . . . . . . . Cargo Convoy Interrupts . | . . . . . . . . . . . . . . . . . . . . . . . Stealth | -11 -10 -10 -9 -9 -9 -7 -7 -7 -7 -6 -5 -5 -5 -5 -5 -5 -5 -4 -4 -3 -3 -2 --------- Run | Yrd Mat Min Mat Sto Rec Fac Gar Fac Gar Fac Fac Was Fac Ext Cet Arc Hub Fac Gar Res Qua Res Distress Signals 32 | . 2 . 2 4 . 2 . . . 4 . . 1 4 2 . 2 . . 8 1 . Communications Jammed . | . . . . . . . . . . . . . . . . . . . . . . . Distress Signals . | . . . . . . . . . . . . . . . . . . . . . . . Times Spotted 485 | . 20 . 28 37 5 19 31 15 34 75 18 1 5 34 9 7 43 . 18 31 31 24 Peak Tracking Total 9 | . 3 . 4 4 3 6 6 3 5 9 5 1 3 5 5 2 5 . 4 9 7 7 Tactical Retreats 24 | . 2 . . 1 . 1 2 . . 4 . . . . . . 9 . 1 1 . 3 Traps | -11 -10 -10 -9 -9 -9 -7 -7 -7 -7 -6 -5 -5 -5 -5 -5 -5 -5 -4 -4 -3 -3 -2 ------- Run | Yrd Mat Min Mat Sto Rec Fac Gar Fac Gar Fac Fac Was Fac Ext Cet Arc Hub Fac Gar Res Qua Res Traps Triggered 28 | . 2 . 1 1 . 1 1 1 5 3 3 . . . . . 3 . 4 1 2 . Indirectly 1 | . . . . . . . . . . . . . . . . . 1 . . . . . Trap Hack Attempts . | . . . . . . . . . . . . . . . . . . . . . . . Triggered . | . . . . . . . . . . . . . . . . . . . . . . . Disarmed . | . . . . . . . . . . . . . . . . . . . . . . . Reprogrammed . | . . . . . . . . . . . . . . . . . . . . . . . Reused . | . . . . . . . . . . . . . . . . . . . . . . . Traps Extracted . | . . . . . . . . . . . . . . . . . . . . . . . Installed . | . . . . . . . . . . . . . . . . . . . . . . . Triggered . | . . . . . . . . . . . . . . . . . . . . . . . Machines | -11 -10 -10 -9 -9 -9 -7 -7 -7 -7 -6 -5 -5 -5 -5 -5 -5 -5 -4 -4 -3 -3 -2 ---------- Run | Yrd Mat Min Mat Sto Rec Fac Gar Fac Gar Fac Fac Was Fac Ext Cet Arc Hub Fac Gar Res Qua Res Machines Disabled 72 | . . . . 4 . . 5 . 4 1 4 . . 5 1 4 17 1 . 4 19 3 Max in Single Turn 14 | . . . . 1 . . 2 . 2 1 1 . . 1 1 1 14 1 . 1 6 1 Garrison Access 5 | . . . . . . . . . . 2 . . . . . . 1 . . 2 . . Garrison Relay 2 | . . . . . . . 2 . . . . . . . . . . . . . . . Phase Generator 2 | . . . . . . . 1 . 1 . . . . . . . . . . . . . Network Hub 2 | . . . . . . . . . . . . . . . . . 2 . . . . . Machines Repaired . | . . . . . . . . . . . . . . . . . . . . . . . Machines Dismantled 5 | . . . . . . . . . . . . . . 1 1 . . . . 3 . . Machines Sabotaged . | . . . . . . . . . . . . . . . . . . . . . . . Overloaded Fab Kills . | . . . . . . . . . . . . . . . . . . . . . . . Hacking | -11 -10 -10 -9 -9 -9 -7 -7 -7 -7 -6 -5 -5 -5 -5 -5 -5 -5 -4 -4 -3 -3 -2 --------- Run | Yrd Mat Min Mat Sto Rec Fac Gar Fac Gar Fac Fac Was Fac Ext Cet Arc Hub Fac Gar Res Qua Res Machines Accessed 119 | . 8 . 6 12 13 11 . 9 . 8 9 . 2 10 1 . 6 3 . 4 14 3 Terminals 78 | . 5 . 3 9 6 8 . 4 . 4 7 . 2 8 1 . 5 . . 1 13 2 Fabricators 6 | . . . . . . 1 . 2 . . 1 . . . . . . . . 1 . 1 Repair Stations 5 | . 1 . 2 1 . . . . . . 1 . . . . . . . . . . . Recycling Units 19 | . 2 . 1 1 6 1 . 2 . 2 . . . 2 . . . 2 . . . . Scanalyzers 1 | . . . . . . . . . . . . . . . . . . . . . 1 . Garrison Access 9 | . . . . 1 . 1 . 1 . 2 . . . . . . 1 1 . 2 . . Total Hacks 302 | . 20 . 22 23 39 33 . 18 . 14 21 . 5 20 1 . 12 3 . 14 43 14 Successful 117 | . 11 . 10 13 20 13 . 7 . 4 5 . 2 5 . . 5 2 . 4 14 2 Failed 184 | . 9 . 12 10 18 20 . 11 . 10 16 . 3 15 1 . 7 1 . 10 29 12 Catastrophic 33 | . 1 . . . . 2 . . . 2 5 . 1 4 1 . . . . 3 10 4 Database Lockouts 1 | . . . . . 1 . . . . . . . . . . . . . . . . . Manual 134 | . 12 . 12 12 25 9 . 4 . 4 9 . 4 5 1 . 9 . . 1 24 3 Terminals 211 | . 13 . 12 18 18 22 . 10 . 8 18 . 5 17 1 . 11 . . 8 40 10 Fabricators 20 | . . . . . . 7 . 3 . . 2 . . . . . . . . 4 . 4 Repair Stations 14 | . 3 . 8 2 . . . . . . 1 . . . . . . . . . . . Recycling Units 39 | . 4 . 2 1 19 1 . 3 . 4 . . . 3 . . . 2 . . . . Scanalyzers 3 | . . . . . . . . . . . . . . . . . . . . . 3 . Garrison Access 13 | . . . . 2 . 3 . 2 . 2 . . . . . . 1 1 . 2 . . Terminal Hacks 44 | . 2 . 2 8 5 7 . 3 . 1 1 . 1 4 . . 1 . . . 8 1 Record 1 | . . . . . . . . . . . . . . . . . . . . . 1 . Part Schematic 4 | . . . . 1 2 1 . . . . . . . . . . . . . . . . Robot Analysis 4 | . 1 . . . 1 1 . . . . . . . 1 . . . . . . . . Prototype ID Bank 3 | . 1 . 1 . . 1 . . . . . . . . . . . . . . . . Open Door 6 | . . . . 2 . . . . . . . . 1 1 . . . . . . 2 . Branch Access Points 4 | . . . 1 . . 1 . 1 . 1 . . . . . . . . . . . . Terminal Index 4 | . . . . . . 1 . . . . 1 . . . . . . . . . 1 1 Unreport Threat 3 | . . . . 1 . . . 1 . . . . . 1 . . . . . . . . Locate Traps 6 | . . . . 1 . 1 . 1 . . . . . 1 . . . . . . 2 . Zone Layout 7 | . . . . 3 . 1 . . . . . . . . . . 1 . . . 2 . Release Object 2 | . . . . . 2 . . . . . . . . . . . . . . . . . Fabricator Hacks 3 | . . . . . . 1 . . . . 1 . . . . . . . . 1 . . Network Status 3 | . . . . . . 1 . . . . 1 . . . . . . . . 1 . . Repair Station Hacks 8 | . 2 . 4 2 . . . . . . . . . . . . . . . . . . Scan Component 4 | . 1 . 2 1 . . . . . . . . . . . . . . . . . . Repair 4 | . 1 . 2 1 . . . . . . . . . . . . . . . . . . Recycling Unit Hacks 12 | . 1 . . 1 4 1 . 2 . 1 . . . 1 . . . 1 . . . . Retrieve Components 12 | . 1 . . 1 4 1 . 2 . 1 . . . 1 . . . 1 . . . . Scanalyzer 1 | . . . . . . . . . . . . . . . . . . . . . 1 . Insert Component 1 | . . . . . . . . . . . . . . . . . . . . . 1 . Garrison Access Hacks 8 | . . . . . . 1 . 1 . 2 . . . . . . 1 1 . 2 . . Unlock Access 3 | . . . . . . 1 . 1 . . . . . . . . . 1 . . . . Seal Access 5 | . . . . . . . . . . 2 . . . . . . 1 . . 2 . . Unauthorized Hacks 41 | . 6 . 4 2 11 3 . 1 . . 3 . 1 . . . 3 . . 1 5 1 Terminals 30 | . 4 . 3 2 6 2 . 1 . . 2 . 1 . . . 3 . . 1 4 1 Track 2 | . . . . 1 . . . . . . . . . . . . . . . . 1 . Botnet 15 | . . . . 1 1 2 . 1 . . 2 . 1 . . . 2 . . 1 3 1 Skim 12 | . 4 . 3 . 5 . . . . . . . . . . . . . . . . . Sabotage 1 | . . . . . . . . . . . . . . . . . 1 . . . . . Fabricators 2 | . . . . . . 1 . . . . 1 . . . . . . . . . . . Haulers 2 | . . . . . . 1 . . . . 1 . . . . . . . . . . . Repair Stations . | . . . . . . . . . . . . . . . . . . . . . . . Recycling Units 8 | . 2 . 1 . 5 . . . . . . . . . . . . . . . . . Mask 1 | . . . . . 1 . . . . . . . . . . . . . . . . . Tunnel 7 | . 2 . 1 . 4 . . . . . . . . . . . . . . . . . Scanalyzers 1 | . . . . . . . . . . . . . . . . . . . . . 1 . Researchers 1 | . . . . . . . . . . . . . . . . . . . . . 1 . Garrison Access . | . . . . . . . . . . . . . . . . . . . . . . . Data Cores Recovered 4 | . . . . . . . . 2 . . . . . 1 . . . . . . 1 . Used . | . . . . . . . . . . . . . . . . . . . . . . . Hacking Detections 95 | . 6 . 5 10 9 11 . 8 . 6 9 . 1 9 1 . 4 1 . 2 10 3 Full Trace Events 8 | . . . . . 1 1 . . . 1 2 . . 1 . . 1 . . . . 1 Feedback Events . | . . . . . . . . . . . . . . . . . . . . . . . Feedback Blocked . | . . . . . . . . . . . . . . . . . . . . . . . Robot Schematics Acquired . | . . . . . . . . . . . . . . . . . . . . . . . Robots Built . | . . . . . . . . . . . . . . . . . . . . . . . Authchips . | . . . . . . . . . . . . . . . . . . . . . . . Time . | . . . . . . . . . . . . . . . . . . . . . . . Total Robot Build Rating . | . . . . . . . . . . . . . . . . . . . . . . . Part Schematics Acquired 4 | . . . . 1 2 1 . . . . . . . . . . . . . . . . Parts Built . | . . . . . . . . . . . . . . . . . . . . . . . Authchips . | . . . . . . . . . . . . . . . . . . . . . . . Time . | . . . . . . . . . . . . . . . . . . . . . . . Total Part Build Rating . | . . . . . . . . . . . . . . . . . . . . . . . Parts Repaired 4 | . 1 . 2 1 . . . . . . . . . . . . . . . . . . Time 122 | . 32 . 58 32 . . . . . . . . . . . . . . . . . . Parts Recycled . | . . . . . . . . . . . . . . . . . . . . . . . Recycled Matter . | . . . . . . . . . . . . . . . . . . . . . . . Retrieved Matter . | . . . . . . . . . . . . . . . . . . . . . . . Retrieved Components 50 | . 3 . . 10 7 1 . 8 . 10 . . . 10 . . . 1 . . . . Parts Scanalyzed . | . . . . . . . . . . . . . . . . . . . . . . . Part Schematics Acquired . | . . . . . . . . . . . . . . . . . . . . . . . Parts Damaged . | . . . . . . . . . . . . . . . . . . . . . . . Bothacking | -11 -10 -10 -9 -9 -9 -7 -7 -7 -7 -6 -5 -5 -5 -5 -5 -5 -5 -4 -4 -3 -3 -2 ------------ Run | Yrd Mat Min Mat Sto Rec Fac Gar Fac Gar Fac Fac Was Fac Ext Cet Arc Hub Fac Gar Res Qua Res Used RIF Installer 3 | . . . . . . . . . 1 . . . . . . . . . 2 . . . Zone Cloak 1 | . . . . . . . . . . . . . . . . . . . 1 . . . Alert ID Control 1 | . . . . . . . . . . . . . . . . . . . 1 . . . Robots Hacked 9 | . . . . . . . . . . 1 . . . 1 2 . . . . 2 3 . Non-combat 1 | . . . . . . . . . . 1 . . . . . . . . . . . . Combat 8 | . . . . . . . . . . . . . . 1 2 . . . . 2 3 . Robot Hacks Applied 9 | . . . . . . . . . . 1 . . . 1 2 . . . . 2 3 . parse_system 8 | . . . . . . . . . . . . . . 1 2 . . . . 2 3 . find_chute 1 | . . . . . . . . . . 1 . . . . . . . . . . . . Relay Couplers Released 11 | . . . . . . . 8 . . 1 . . . . . . 2 . . . . . Machine Destruction 11 | . . . . . . . 8 . . 1 . . . . . . 2 . . . . . Fabnet Peak Effective % . | . . . . . . . . . . . . . . . . . . . . . . . Robots Rewired 18 | . . . . . . . . . 2 . . . . 11 . . . . 3 . 2 . Allies Hacked . | . . . . . . . . . . . . . . . . . . . . . . . Hacks Repelled . | . . . . . . . . . . . . . . . . . . . . . . . Allies | -11 -10 -10 -9 -9 -9 -7 -7 -7 -7 -6 -5 -5 -5 -5 -5 -5 -5 -4 -4 -3 -3 -2 -------- Run | Yrd Mat Min Mat Sto Rec Fac Gar Fac Gar Fac Fac Was Fac Ext Cet Arc Hub Fac Gar Res Qua Res Total Allies 57 | . . . . 10 . . . . 2 . . 20 . 15 5 . . . 3 . 2 . Largest Group 20 | . . . . 10 5 . . . 2 2 . 20 18 15 15 13 12 . 3 . 1 . Highest-Rated Group 938 | . . . . 88 48 . . . 41 41 . 740 664 615 938 805 643 . 144 . 136 . Highest-Rated Ally 159 | . . . . 16 16 . . . 21 21 . 50 50 159 159 159 96 . 48 . 136 . Initial Warlord ECA Mod 10 | . . . . . . . . 5 5 . . . . . . . . . . . . . Total Orders 4 | . . . . 1 . . . . . 2 . . . . . . 1 . . . . . STAY 2 | . . . . 1 . . . . . . . . . . . . 1 . . . . . EXPLORE 2 | . . . . . . . . . . 2 . . . . . . . . . . . . Ally Attacks 618 | . . . . 24 15 . . . . 3 . 16 59 270 39 36 131 . 5 . 20 . Total Damage 15230 | . . . . 221 160 . . . . 63 . 489 1249 6380 969 1164 3391 . 120 . 1024 . Kills 79 | . . . . 3 3 . . . . 1 . 1 6 38 5 3 16 . 1 . 2 . Allies Corrupted 4 | . . . . . . . . . . 1 . . . 1 . . 1 . . . 1 . Allies Melted 1 | . . . . . . . . . . . . 1 . . . . . . . . . . Intel | -11 -10 -10 -9 -9 -9 -7 -7 -7 -7 -6 -5 -5 -5 -5 -5 -5 -5 -4 -4 -3 -3 -2 ------- Run | Yrd Mat Min Mat Sto Rec Fac Gar Fac Gar Fac Fac Was Fac Ext Cet Arc Hub Fac Gar Res Qua Res Active Infowar (turns) 30243 | 15 1974 331 1144 2934 893 1120 536 1773 660 2555 2023 1034 422 2014 551 1625 948 187 1083 1076 3678 1667 Optics 6142 | . . . . . . . . . . . . . . . . . . . . 797 3678 1667 Sensors 4308 | . . . . . . . . . . . 1358 1034 422 112 . . . . . 156 1226 . IFF 2654 | . . . . . . . . . . . . . . . . . . . . . 1132 1522 Terrain 1 | . . . . . . . . . . . . . . . . . . . . . . 1 Structural 6553 | . . . . . . 45 . 45 . 519 1396 1034 422 437 . 2 501 150 1 720 414 867 Seismic 15090 | 15 1974 331 1144 2934 893 1075 536 1728 660 2467 403 . . . . 3 277 100 550 . . . Machine Analysis 8849 | . . . . . . . . . . . 985 1034 422 2014 551 1625 948 187 1083 . . . Jamming 831 | . . . . . . . . . . . 44 . . . . . . 187 600 . . . ECM 33 | . . . . . . . . . . . . . . . . . . . . . . 33 Robot Analysis Total 4 | . 1 . . . 1 1 . . . . . . . 1 . . . . . . . . Derelict Logs Recovered . | . . . . . . . . . . . . . . . . . . . . . . . Drone Launches 2 | . . . . . . . . . . 2 . . . . . . . . . . . . Drone Recoveries . | . . . . . . . . . . . . . . . . . . . . . . . Exploration | -11 -10 -10 -9 -9 -9 -7 -7 -7 -7 -6 -5 -5 -5 -5 -5 -5 -5 -4 -4 -3 -3 -2 ------------- Run | Yrd Mat Min Mat Sto Rec Fac Gar Fac Gar Fac Fac Was Fac Ext Cet Arc Hub Fac Gar Res Qua Res Turns Passed 39245 | 30 2049 331 1429 3167 5167 1456 1639 2078 1540 3645 2093 1034 422 2014 551 1625 948 187 1419 1076 3678 1667 Spaces Moved 15478 | 18 731 207 509 1054 2202 714 722 834 601 1092 650 465 212 889 213 249 351 70 547 419 1999 730 Core 51 | . . . . . . . . . . . . . . . . 50 . . . . . 1 Treads 8942 | . 584 207 509 1054 954 455 495 699 214 936 268 435 211 197 137 199 59 57 547 190 238 297 Legs 3592 | 18 147 . . . 99 167 . 135 387 75 292 . 1 692 76 . 20 13 . 216 1254 . Wheels 1230 | . . . . . 1149 . . . . 81 . . . . . . . . . . . . Hover 1644 | . . . . . . 92 227 . . . 90 30 . . . . 272 . . . 507 426 Flight 19 | . . . . . . . . . . . . . . . . . . . . 13 . 6 Fastest Speed 65 | 120 120 160 160 240 110 104 104 182 182 218 221 65 175 65 144 144 144 210 211 167 108 82 Average Speed 200 | 120 151 160 207 240 186 160 166 222 196 257 279 212 175 176 183 597 190 243 211 193 154 165 Slowest Speed 2400 | 120 160 160 240 240 320 182 219 258 227 333 422 428 175 254 254 2400 210 251 251 270 221 331 Overloaded Moves . | . . . . . . . . . . . . . . . . . . . . . . . Propulsion Burnouts . | . . . . . . . . . . . . . . . . . . . . . . . Robots Hopped . | . . . . . . . . . . . . . . . . . . . . . . . Potential Cave-ins 2 | . . . . . . . . . . 2 . . . . . . . . . . . . Cave-ins Triggered . | . . . . . . . . . . . . . . . . . . . . . . . Exploration Rate (%) 50 | 3 97 36 41 95 99 21 60 26 84 21 17 96 6 98 72 80 41 3 43 15 99 10 Regions Visited 22 Branch Regions 8 Pre-discovered Areas 11 | . 2 . 1 1 7 . . . . . . . . . . . . . . . . . Known Exits Taken 11 | . . . 1 . 1 1 . 1 . . . . 1 1 1 1 1 1 . 1 . . Unknown Exits Taken 6 | 1 1 1 . 1 . . . . . 1 . . . . . . . . . . 1 . Scrap Searched . | . . . . . . . . . . . . . . . . . . . . . . . Spaces Dug 242 | . 1 . 33 19 3 10 . 9 42 37 25 . 1 . . . 3 1 15 7 11 25 Terrain Destroyed 1567 | . 18 . 33 19 3 13 109 21 143 59 84 . 4 17 7 4 359 1 68 8 525 72 Melee 45 | . 1 . . . 3 6 . . . 10 . . . . . . . . 4 2 11 8 Projectile 198 | . . . . . . 7 5 2 . 30 35 . 4 17 7 4 34 1 1 2 1 48 AOE 1322 | . 17 . 33 19 . . 102 19 143 19 49 . . . . . 325 . 63 4 513 16 Terrain Rammed . | . . . . . . . . . . . . . . . . . . . . . . . Walls Destroyed . | . . . . . . . . . . . . . . . . . . . . . . . Machines Disabled . | . . . . . . . . . . . . . . . . . . . . . . . Actions | -11 -10 -10 -9 -9 -9 -7 -7 -7 -7 -6 -5 -5 -5 -5 -5 -5 -5 -4 -4 -3 -3 -2 --------- Run | Yrd Mat Min Mat Sto Rec Fac Gar Fac Gar Fac Fac Was Fac Ext Cet Arc Hub Fac Gar Res Qua Res Total 21562 | 22 1592 207 771 1569 3188 920 966 990 818 1600 846 516 249 1207 343 360 471 84 724 592 2427 1100 Wait 3314 | . 768 1 155 372 845 104 49 88 40 134 76 31 29 126 90 78 28 1 51 32 94 122 Move 15459 | 17 730 206 508 1053 2201 713 721 834 600 1091 650 464 211 888 212 248 350 70 546 418 1998 730 Hop . | . . . . . . . . . . . . . . . . . . . . . . . Pick Up 227 | 2 19 . 16 21 28 16 23 7 2 10 12 5 . 6 5 1 2 1 2 9 22 18 Fast Attach 134 | 1 2 . 2 7 . 1 2 4 2 15 4 1 . 7 1 8 . 2 . 14 40 21 Attach 104 | . 2 . 5 1 1 4 1 1 6 14 7 1 . 2 1 . 1 2 9 10 25 11 Detach 121 | . . . 1 . 5 2 3 3 4 14 3 2 . 3 2 3 . 3 4 14 36 19 Swap 252 | . 14 . 24 25 12 17 17 11 20 41 10 . . 13 4 2 5 2 3 11 13 8 Drop 268 | . 15 . 7 23 46 9 25 6 2 12 4 11 . 9 5 5 2 1 . 7 44 35 Fire 1337 | 2 38 . 53 65 47 43 125 31 80 241 80 1 7 64 13 8 82 2 60 42 125 128 Melee 140 | . 4 . . . 3 11 . . 17 27 . . . 10 2 7 1 . 20 7 23 8 Ram . | . . . . . . . . . . . . . . . . . . . . . . . Kick 2 | . . . . . . . . . . . . . . 2 . . . . . . . . Crush 12 | . . . . 2 . . . 3 . 1 . . 2 . . . . . . 1 3 . Escape Stasis 35 | . . . . . . . . 2 22 . . . . 3 . . . . 8 . . . Rewire 114 | . . . . . . . . . 23 . . . . 66 . . . . 21 . 4 . Trap . | . . . . . . . . . . . . . . . . . . . . . . . Miscellaneous 43 | . . . . . . . . . . . . . . 8 8 . . . . 27 . . Route ------- -11/Scrapyard -10/Materials (discovered 5 exits: *Mat x3 / [*Min x2]) -10/Mines (discovered 2 exits: *Mat / [*Exi]) -9/Materials (discovered 5 exits: [*Mat] / Min x2 / *Sto x2) -9/Storage (discovered 2 exits: [*Mat] / *Rec) -9/Recycling -7/Factory (discovered 4 exits: *Fac / *Low x2 / Gar) -7/Garrison (discovered 2 exits: *Fac x2) -7/Factory (discovered 4 exits: *Fac / *Low x2 / Gar) -7/Garrison (discovered 3 exits: *Fac x3) -6/Factory (discovered 3 exits: *Fac / Low x2) -5/Factory -5/Waste -5/Factory -5/Extension (discovered 2 exits: *Fac / *Cet) -5/Cetus (discovered 2 exits: *Fac / *Arc) -5/Archives (discovered 3 exits: *Fac / *Hub x2) -5/Hub_04(d) (discovered 3 exits: *Fac x3) -4/Factory -4/Garrison -3/Research (discovered 2 exits: *Res / *Qua) -3/Quarantine -2/Research History --------- Turn | Location | Event 7 | -11/Scrapyard | Discovered new exit (range 3) 31 | -11/Scrapyard | Entered Materials 124 | -10/Materials | Discovered new exit (range 8) 301 | -10/Materials | Build established: Mutant 364 | -10/Materials | Discovered new exit (range 4) 387 | -10/Materials | Discovered new exit (range 16) 909 | -10/Materials | Discovered new exit (range 8) 1130 | -10/Materials | Discovered new exit (range 9) 1155 | -10/Materials | Core integrity fell below 50% 1457 | -10/Materials | Repaired Hrd. Light Armor Plating 2080 | -10/Materials | Entered Mines 2089 | -10/Mines | Discovered new exit (range 12) 2219 | -10/Mines | Deemed a non-threat by the Exiles lab entrance 2219 | -10/Mines | Discovered new exit (range 5) 2411 | -10/Mines | Entered Materials 2411 | -9/Materials | Evolved 2 slots: Propulsion x1, Utility x1 2579 | -9/Materials | Discovered new exit (range 13) 3219 | -9/Materials | Identified exit to Mines 3219 | -9/Materials | Identified exit to Storage 3356 | -9/Materials | Discovered new exit (range 16) 3569 | -9/Materials | Repaired Hrd. Light Armor Plating 3802 | -9/Materials | Repaired Seismic Detector 3840 | -9/Materials | Entered Storage 4465 | -9/Storage | Learned location of Armory (-4) 5121 | -9/Storage | Build established: Scavenger-Mutant 5190 | -9/Storage | Assisted by bots powering up and referring to "LRC-V3" 5292 | -9/Storage | Used back door to open Recycling access 5292 | -9/Storage | Discovered new exit (range 4) 5378 | -9/Storage | Lost 5 allies 5488 | -9/Storage | Build established: Commander-Mutant 6337 | -9/Storage | Repaired Med. Armor Plating 6373 | -9/Storage | Discovered new exit (range 16) 6551 | -9/Storage | Met 01-MTF 7007 | -9/Storage | Entered Recycling 7007 | -9/Recycling | Accompanied by 6 allies (01-MTF) 7527 | -9/Recycling | Identified exit to Factory 7581 | -9/Recycling | Learned Storage non-interactive machine intel 7657 | -9/Recycling | Learned location of Zion (-7) 7682 | -9/Recycling | Learned Materials emergency access door positions 7695 | -9/Recycling | Identified exit to Scraptown 7814 | -9/Recycling | Scanned before Scraplab entrance 7870 | -9/Recycling | Lost 4 allies 7872 | -9/Recycling | Entered Scraplab 7918 | -9/Recycling | Angered Scraplab inhabitants 7926 | -9/Recycling | Found Prototype Device 7949 | -9/Recycling | Identified Scrap Engine 8198 | -9/Recycling | Build established: Mutant 9404 | -9/Recycling | Build established: Construct 12174 | -9/Recycling | Entered Factory 12174 | -7/Factory | Evolved 4 slots: Power x1, Propulsion x1, Utility x1, Weapon x1 12303 | -7/Factory | Discovered new exit (range 4) 13001 | -7/Factory | Identified exit to Lower Caves 13558 | -7/Factory | Identified exit to Garrison 13630 | -7/Factory | Entered Garrison 13671 | -7/Garrison | Triggered checkpoint 13690 | -7/Garrison | Phase Generator disabled 14092 | -7/Garrison | Triggered checkpoint 14134 | -7/Garrison | Triggered checkpoint 14590 | -7/Garrison | Discovered new exit (range 13) 14636 | -7/Garrison | Triggered checkpoint 14728 | -7/Garrison | Triggered checkpoint 14729 | -7/Garrison | Garrison Relay disabled 14982 | -7/Garrison | Triggered checkpoint 15181 | -7/Garrison | Discovered new exit (range 8) 15269 | -7/Garrison | Entered Factory 16466 | -7/Factory | Discovered new exit (range 16) 17347 | -7/Factory | Identified exit to Garrison 17347 | -7/Factory | Entered Garrison 17397 | -7/Garrison | Installed Relay Interface Framework 17472 | -7/Garrison | Triggered checkpoint 17585 | -7/Garrison | Triggered checkpoint 17652 | -7/Garrison | Discovered new exit (range 8) 17944 | -7/Garrison | Triggered checkpoint 18125 | -7/Garrison | Discovered new exit (range 3) 18154 | -7/Garrison | Phase Generator disabled 18203 | -7/Garrison | Triggered checkpoint 18206 | -7/Garrison | Core integrity fell below 50% 18435 | -7/Garrison | Triggered checkpoint 18499 | -7/Garrison | Triggered checkpoint 18749 | -7/Garrison | Discovered new exit (range 13) 18887 | -7/Garrison | Entered Factory 18887 | -6/Factory | Accompanied by 2 allies 18887 | -6/Factory | Evolved 2 slots: Utility x2 19117 | -6/Factory | Discovered new exit (range 8) 19527 | -6/Factory | Garrison activated, responded to threat 19880 | -6/Factory | Build established: Mutant 20287 | -6/Factory | First assault squad dispatched 20612 | -6/Factory | Build established: Construct 20680 | -6/Factory | Lost 3 parts (1u2w) 20822 | -6/Factory | Core integrity fell below 50% 21585 | -6/Factory | Identified exit to Lower Caves 22319 | -6/Factory | Lost 5 parts (1p1n1u2w) 22532 | -6/Factory | Entered another Factory area 22532 | -5/Factory | Evolved 2 slots: Utility x2 22836 | -5/Factory | Build established: Infiltrator-Mutant 23241 | -5/Factory | Build established: Infiltrator-Skirmisher 23832 | -5/Factory | Build established: Skirmisher 23988 | -5/Factory | Lost 3 parts (2u1w) 24625 | -5/Factory | Sucked down chute 24625 | -5/Factory | Entered Waste 24626 | -5/Waste | Joined by Warlord forces that had cleared the area 24815 | -5/Waste | A Compactor rumbled back to life 24818 | -5/Waste | Spotted C-40 Crusher 24821 | -5/Waste | Allies destroyed C-40 Crusher 24946 | -5/Waste | Discovered new exit (range 13) 24973 | -5/Waste | Build established: Construct 25506 | -5/Waste | Identified exit to Factory 25659 | -5/Waste | Entered Factory 25659 | -5/Factory | Accompanied by 18 allies 25953 | -5/Factory | Discovered new exit (range 10) 26057 | -5/Factory | Identified exit to Extension 26081 | -5/Factory | Entered Extension 26081 | -5/Extension | Accompanied by 14 allies 26315 | -5/Extension | Lost 7 allies 26368 | -5/Extension | Rescued A7 26565 | -5/Extension | Rescued a captive Derelict 26574 | -5/Extension | Rescued a captive Derelict 26737 | -5/Extension | Spotted B-75 Beast 26757 | -5/Extension | Allies destroyed B-75 Beast 26762 | -5/Extension | Spotted B-75 Beast 26770 | -5/Extension | Build established: Commander-Construct 26785 | -5/Extension | Allies destroyed B-75 Beast 26820 | -5/Extension | Lost 6 allies 27056 | -5/Extension | Disrupted transfer network 27102 | -5/Extension | Build established: Construct 27126 | -5/Extension | Rescued a captive Derelict 27855 | -5/Extension | Build established: Commander-Construct 28048 | -5/Extension | Discovered new exit (range 16) 28051 | -5/Extension | Discovered new exit (range 15) 28084 | -5/Extension | Identified exit to Cetus 28095 | -5/Extension | Entered Cetus 28095 | -5/Cetus | Accompanied by 10 allies (A7) 28100 | -5/Cetus | Acquired a Cetus Manufacturing Module code from A7 28127 | -5/Cetus | Spotted Cetus Guard 28128 | -5/Cetus | Spotted Cetus Guard 28132 | -5/Cetus | Allies destroyed Cetus Guard 28132 | -5/Cetus | Spotted Cetus Guard 28132 | -5/Cetus | Allies destroyed Cetus Guard 28134 | -5/Cetus | Spotted Cetus Guard 28137 | -5/Cetus | Allies destroyed Cetus Guard 28139 | -5/Cetus | Destroyed Cetus Guard 28314 | -5/Cetus | Started Cetus Manufacturing Module 28339 | -5/Cetus | Manufactured an Enhanced Grunt 28342 | -5/Cetus | Escorted A7 to Cetus Mainframe 28364 | -5/Cetus | Manufactured an Enhanced Grunt 28389 | -5/Cetus | Manufactured an Enhanced Grunt 28414 | -5/Cetus | Manufactured an Enhanced Grunt 28439 | -5/Cetus | Manufactured an Enhanced Grunt 28456 | -5/Cetus | Discovered new exit (range 15) 28485 | -5/Cetus | Spotted Cetus Guard 28485 | -5/Cetus | Spotted Cetus Guard 28488 | -5/Cetus | Spotted Cetus Guard 28488 | -5/Cetus | Spotted Cetus Guard 28495 | -5/Cetus | Destroyed Cetus Guard 28502 | -5/Cetus | Allies destroyed Cetus Guard 28516 | -5/Cetus | Destroyed Cetus Guard 28517 | -5/Cetus | Allies destroyed Cetus Guard 28534 | -5/Cetus | Discovered new exit (range 15) 28541 | -5/Cetus | Met Revision 17 28613 | -5/Cetus | Identified exit to Archives 28646 | -5/Cetus | Entered Archives 28646 | -5/Archives | Accompanied by 13 allies (A7) 28651 | -5/Archives | Received a hacking code to weaken MAIN.C 28720 | -5/Archives | Discovered new exit (range 14) 28751 | -5/Archives | Discovered new exit (range 15) 28807 | -5/Archives | Discovered new exit (range 16) 30249 | -5/Archives | Identified exit to Hub_04(d) 30271 | -5/Archives | Entered Hub_04(d) 30271 | -5/Hub_04(d) | Accompanied by 12 allies 30374 | -5/Hub_04(d) | Discovered new exit (range 13) 30450 | -5/Hub_04(d) | Discovered new exit (range 9) 30505 | -5/Hub_04(d) | Identified exit to Factory 30708 | -5/Hub_04(d) | Garrison activated, responded to threat 30733 | -5/Hub_04(d) | Network Hub disabled 30733 | -5/Hub_04(d) | Network Hub disabled 30764 | -5/Hub_04(d) | Lost 5 allies 30786 | -5/Hub_04(d) | Discovered exit to Factory (range 9) 30988 | -5/Hub_04(d) | Spotted B-75 Beast 31026 | -5/Hub_04(d) | Build established: Construct 31048 | -5/Hub_04(d) | Core integrity fell below 50% 31077 | -5/Hub_04(d) | Destroyed B-75 Beast 31108 | -5/Hub_04(d) | Garrison activated, responded to threat 31171 | -5/Hub_04(d) | First assault squad dispatched 31219 | -5/Hub_04(d) | Entered Factory 31219 | -4/Factory | Evolved 2 slots: Propulsion x1, Utility x1 31344 | -4/Factory | Found Prototype Processor 31344 | -4/Factory | Identified Exp. Signal Interpreter 31406 | -4/Factory | Identified exit to Garrison 31406 | -4/Factory | Entered Garrison 31442 | -4/Garrison | Triggered checkpoint 31468 | -4/Garrison | Triggered checkpoint 31574 | -4/Garrison | Expanded RIF knowledge: Alert ID Control 31905 | -4/Garrison | Spotted B-86 Titan 31906 | -4/Garrison | Triggered checkpoint 31910 | -4/Garrison | Triggered checkpoint 31952 | -4/Garrison | Lost 3 allies 32071 | -4/Garrison | Destroyed B-86 Titan 32480 | -4/Garrison | Triggered checkpoint 32549 | -4/Garrison | Expanded RIF knowledge: Zone Cloak 32578 | -4/Garrison | Discovered new exit (range 3) 32825 | -4/Garrison | Entered Research 32825 | -3/Research | Evolved 2 slots: Utility x1, Weapon x1 33025 | -3/Research | Revision forces began assault on 0b10 33064 | -3/Research | Met up with Revision 17++ 33182 | -3/Research | Lost 5 allies 33214 | -3/Research | Lost 4 parts (4u) 33218 | -3/Research | Spotted B-86 Titan 33283 | -3/Research | Lost 3 allies 33482 | -3/Research | Spotted B-86 Titan 33499 | -3/Research | Discovered new exit (range 5) 33525 | -3/Research | Research terminal network offline 33575 | -3/Research | Spotted Striker 33575 | -3/Research | Spotted Striker 33596 | -3/Research | Spotted Striker 33598 | -3/Research | Destroyed Striker 33598 | -3/Research | Spotted Executioner 33613 | -3/Research | Destroyed Striker 33622 | -3/Research | Destroyed Striker 33633 | -3/Research | Destroyed Executioner 33893 | -3/Research | Discovered new exit (range 4) 33898 | -3/Research | Identified exit to Quarantine 33901 | -3/Research | Entered Quarantine 34100 | -3/Quarantine | Cryocooling Duct disabled 34115 | -3/Quarantine | Ambient heat levels rising (+20) 34115 | -3/Quarantine | Non-combat units ordered to evacuate 34166 | -3/Quarantine | Found Alien Artifact 34222 | -3/Quarantine | Identified Core Reset Matrix 34222 | -3/Quarantine | Used Core Reset Matrix 34226 | -3/Quarantine | Detected hypermatrix surge 34226 | -3/Quarantine | Sensed 6 artifacts in vicinity 34286 | -3/Quarantine | Spotted Alpha 7 34335 | -3/Quarantine | Destroyed Alpha 7 34349 | -3/Quarantine | Lost 3 parts (2u1w) 34420 | -3/Quarantine | System corruption reached 10% 34466 | -3/Quarantine | Lost 7 parts (2p2u3w) 34513 | -3/Quarantine | Found Sigix Terminator 34587 | -3/Quarantine | Found Matter Drive 34669 | -3/Quarantine | Found Subatomic Replicator 34711 | -3/Quarantine | Cryocooling Duct disabled 34726 | -3/Quarantine | Ambient heat levels rising (+20) 34726 | -3/Quarantine | Combat units ordered to evacuate 34826 | -3/Quarantine | Quarantine Guard activated 34867 | -3/Quarantine | Spotted Quarantine Guard 34877 | -3/Quarantine | Build established: Assassin 34897 | -3/Quarantine | Spotted Quarantine Guard 34898 | -3/Quarantine | Spotted Quarantine Guard 34899 | -3/Quarantine | Spotted Quarantine Guard 34913 | -3/Quarantine | Spotted Quarantine Guard 34916 | -3/Quarantine | Spotted Quarantine Guard 34924 | -3/Quarantine | Spotted Quarantine Guard 34929 | -3/Quarantine | Fired Sigix Terminator 34929 | -3/Quarantine | Destroyed Quarantine Guard 34929 | -3/Quarantine | Destroyed Quarantine Guard 34929 | -3/Quarantine | Destroyed Quarantine Guard 34929 | -3/Quarantine | Destroyed Quarantine Guard 34929 | -3/Quarantine | Destroyed Quarantine Guard 34929 | -3/Quarantine | Destroyed Quarantine Guard 34952 | -3/Quarantine | Spotted Quarantine Guard 34960 | -3/Quarantine | Spotted Quarantine Guard 34966 | -3/Quarantine | Rewired Quarantine Guard 34978 | -3/Quarantine | Allies destroyed Quarantine Guard 35025 | -3/Quarantine | Lost 6 parts (1p4u1w) 35246 | -3/Quarantine | Found Phase Armor 35296 | -3/Quarantine | Found Sigix Broadsword 35540 | -3/Quarantine | Met incapacitated Sigix Warrior 35540 | -3/Quarantine | Lockdown squad dispatched 35552 | -3/Quarantine | Spotted Lightning 35553 | -3/Quarantine | Acquired the access code to the Sigix quarantine chamber 35556 | -3/Quarantine | Unlocked Sigix quarantine chamber 35557 | -3/Quarantine | Spotted Lightning 35559 | -3/Quarantine | Spotted Lightning 35561 | -3/Quarantine | Found Sigix Containment Pod 35566 | -3/Quarantine | Core integrity fell below 50% 35580 | -3/Quarantine | Spotted Quarantine Guard 35594 | -3/Quarantine | Destroyed Lightning 35598 | -3/Quarantine | Destroyed Lightning 35598 | -3/Quarantine | Destroyed Lightning 35651 | -3/Quarantine | Lost 8 parts (2p3u3w) 35653 | -3/Quarantine | Core integrity fell below 20% 35659 | -3/Quarantine | Destroyed Quarantine Guard 35880 | -3/Quarantine | Build established: Mutant 36042 | -3/Quarantine | Found Prototype Protection 36042 | -3/Quarantine | Identified Centrium Heavy Armor Plating 36288 | -3/Quarantine | Found Phase Redirector 36866 | -3/Quarantine | Spotted Quarantine Guard 37150 | -3/Quarantine | Found Unknown Device 37150 | -3/Quarantine | Identified Quantum Capacitor 37179 | -3/Quarantine | Discovered new exit (range 5) 37179 | -3/Quarantine | Spotted Quarantine Guard 37193 | -3/Quarantine | Destroyed Quarantine Guard 37578 | -3/Quarantine | System corruption reached 30% 37579 | -3/Quarantine | Entered Research 37579 | -2/Research | Evolved 2 slots: Utility x2 38535 | -2/Research | System corruption reached 10% 39153 | -2/Research | Lost 4 parts (2u2w) 39246 | -2/Research | Self-destructed Last Messages --------------- 39239_ Hovering Antigrav-FC Exoskeleton core remains intact and functional. 39239_ Imp. Cooling System destroyed. 39240_ Slug penetrates Wall. 39240_ Dropped Huge Storage Unit. 39240_ K-01 Serf cleans the Fabricator. 39241_ Dropped Sigix Containment Pod. 39242_ Slug penetrates Wall. 39242_ Hovering Antigrav-FC Exoskeleton destroyed. 39242_ Scrap Engine damaged due to network destabilization (-8). 39244_ Scrap Engine destroyed. 39244_ Fabricator disabled. 39244_ K-01 Serf collects debris. 39245_ Acquired Subatomic Replicator. 39245_ Slug penetrates Wall. 39245_ Structural Scanner destroyed. 39245_ Slug penetrates Terminal. 39245_ Slug penetrates Wall. Map ----- +----------------------------------------------------+ | ??????? # ###???????????????????????????????? | | ###### # ############??????????????????????? | | ###### # ############??????????????????????? | | + # # ##??????????????????????? | | ### # # ##??????????????????????? | | """ ### # # ##??????????????????????? | | """ ### # # ##??????????????????????? | | """ ### # # ##??????????????????????? | | "" ### # # ##??????????????????????? | | ### # # ###?????????????????????? | | ### # # #####???????????????????? | | ######## ####+######+##########??????????????????? | | k ############## ??????? | | ! ############## ??????? | | # # ??????? | | # !! # ??????? | | # T####### u # !! ##??????? | | ########## """ """ # ####### ? | | ?####???## """ """ # ####### | | ########## """ """ #% + | | ########## # ###?????? | | # + ###?????? | | # # ##??????? | | # """ """ # %% ##??????? | | # """ """ # !H ##??????? | | "" """ # """ """@p!#! % ##??????? | | "" """ # !]pp#####""#######??????? | | "" """ + &!!!# "" T""" ##?###### | | """ # /!!# " " """ ##?##### | | """ # """ ""!!!# ##?## | | # """ k""" !# ##?## ## | | # """ " # ##?## ### | | # "F" # ##?## ### | | ##+####+## """ # ##### ### | | ## #### ## # ##### ### | | ## ##????# + + " " | | ## ##????# # == ##### ### | | ## ##????############### # ##### ### | | ## #### ################ # ##### ### | | ##+####+################ ################## ### | | # | | # ######## | | """" # # ## ### | | """" + ! ## | | """" # ###+############# # +# # ## | | """" # # ##### [ ## | | # # ##??### ## | | ###### """ ##??# # | | ############### """ ####### ## | | ###########??## """ ####"" " ## | +----------------------------------------------------+ Best States ------------- Heat Dissipation 134 Energy Generation 45 Energy Capacity 701 Matter Stores 300 Matter Capacity 300 Sight Range 23 Robot Scan Range 16 Terrain Scan Density 10 ECM Strength 1 Jamming Range 14 EM Shielding 4 Armor Coverage 1350 Resistance: KI 25 Resistance: TH 30 Weapon Cycling 30 Phase Shifting 15 Evasion (%) 63 Targeting Accuracy 6 Target Analysis 5 Core Analysis 6 Armor Integrity Analysis 30 Recoil Reduction 4 Kinecelleration 40 Salvage Targeting 4 Item Schematics ----------------- None Robot Schematics ------------------ None Fabricated ------------ Nothing Repaired ---------- Hrd. Light Armor Plating | 70% | -10/Materials Hrd. Light Armor Plating | 28% | -9/Materials Seismic Detector | 15% | -9/Materials Med. Armor Plating | 20% | -9/Storage Alien Tech Used ----------------- Core Reset Matrix Matter Drive Sigix Terminator Sigix Broadsword Phase Armor Achievements -------------- Hard Hitter Challenges ------------ None Game ------ Seed LinkedAdvancedDrivehammer Manual? 0 Play Time 05:53:31 Cumulative 469.0 hours Start 2025.06.19 @ 22:37:02 End 2025.06.20 @ 19:02:11 Sessions 5 Manual Loads 0 Difficulty Rogue Special Mode None Game No. 246 Rogue 183 Adventurer 63 Explorer 0 Win Type - Total 9 Types 8/0/0/1/0/0/0/0/0/0 Lore% 89 Gallery% 81 Achievement% 66 Wizard Run 0 Options --------- Layout 1 ASCII 0 Keyboard 1 Movement Numpad Keybinds 0 Fullscreen 1 Font 24/Terminus Map View 50x35 Zoom Use 0% Tactical HUD 1 Map Filters NONE Filters NONE Steam 1 RUN: a2fa1512-7b72-4bb7-ba1a-801555d79430